bitfinex-derivatives/quotes_SOLF0:USTF0_20241231
["timestamp","ask_amount","ask_price","bid_price","bid_amount"]
[1735679381843,209.26047673,193.57,193.56,3.46]
[1735679382553,209.26047673,193.57,193.56,16.31191172]
[1735679382753,103.33308261,193.57,193.56,16.31191172]
[1735679383054,103.33308261,193.57,193.56,2.5876]
[1735679385757,103.33308261,193.57,193.55,3.46]
[1735679385758,7.1433,193.69,193.55,3.46]
[1735679386057,4.5573,193.69,193.59,10.26431172]
[1735679386249,4.5573,193.69,193.6,3.46]
[1735679386858,1.5088,193.69,193.6,8.12599096]
[1735679387359,1.5088,193.69,193.61,23.47946412]
[1735679387959,1.5088,193.69,193.62,23.47946412]
[1735679388159,2.5862,193.68,193.63,2.5866]
[1735679390266,2.5862,193.68,193.64,2.5866]
[1735679398072,2.5862,193.68,193.65,2.5864]
[1735679399773,2.5852,193.75,193.68,2.586]
[1735679399964,6.56820855,193.75,193.68,6.56820855]
[1735679400373,2.5854,193.74,193.68,6.56820855]
[1735679400572,6.56820855,193.73,193.67,3.34]
[1735679400770,6.56820855,193.71,193.63,9.67270855]
[1735679400976,2.5858,193.7,193.67,2.5861]
[1735679402075,2.5858,193.7,193.66,2.5863]
[1735679402373,6.56820855,193.71,193.65,3.34]
[1735679403066,6.56820855,193.71,193.65,9.90820855]
[1735679403472,1.6021,193.78,193.65,9.90820855]
[1735679403775,6.56820855,193.73,193.65,9.90820855]
[1735679403976,2.5856,193.72,193.67,2.5861]
[1735679404178,2.5856,193.72,193.67,3.34]
[1735679404373,10.26013753,193.75,193.67,3.34]
[1735679405177,2.586,193.69,193.66,2.5863]
[1735679406078,2.5861,193.68,193.62,10.26013753]
[1735679406280,2.5861,193.68,193.63,3.34]
[1735679406580,2.5861,193.68,193.64,2.5865]
[1735679406779,10.26013753,193.72,193.59,10.26013753]
[1735679406975,10.26013753,193.69,193.6,3.34]
[1735679407279,1.5462,193.68,193.6,5.9271]
[1735679407682,1.5462,193.68,193.6,2.5871]
[1735679408077,2.5866,193.64,193.6,2.5871]
[1735679409075,1.5462,193.68,193.6,2.5871]
[1735679409283,2.5869,193.62,193.58,2.5874]
[1735679410479,10.26013753,193.66,193.58,2.5874]
[1735679410480,2.587,193.61,193.58,2.5874]
[1735679411575,10.26013753,193.66,193.54,3.34]
[1735679411777,10.26013753,193.63,193.5,10.26013753]
[1735679411978,2.9837,193.62,193.51,3.34]
[1735679412678,2.5873,193.59,193.55,2.5877]
[1735679413078,2.9837,193.62,193.55,2.5877]
[1735679413283,2.5874,193.58,193.55,2.5877]
[1735679413474,2.9837,193.62,193.5,10.26013753]
[1735679413677,2.5876,193.57,193.53,2.588]
[1735679415481,1.5756,193.59,193.11,5.18]
[1735679415783,3.34,193.58,193.45,10.26013753]
[1735679415984,3.34,193.58,193.46,3.34]
[1735679416280,10.26013753,193.57,193.46,2.589]
[1735679416486,10.26013753,193.57,193.44,3.34]
[1735679417179,2.588,193.54,193.48,2.5886]
[1735679417485,10.26013753,193.57,193.44,3.34]
[1735679417683,2.588,193.54,193.5,2.5884]
[1735679417885,10.26013753,193.57,193.46,10.26013753]
[1735679418076,1.5756,193.59,193.46,10.26013753]
[1735679418280,4.9156,193.59,193.46,10.26013753]
[1735679418884,2.5876,193.57,193.52,2.5881]
[1735679419084,4.9156,193.59,193.52,2.5881]
[1735679419491,2.5875,193.57,193.52,2.5881]
[1735679419781,4.9156,193.59,193.52,2.5881]
[1735679421492,2.5877,193.56,193.52,2.5881]
[1735679422691,2.5878,193.55,193.52,2.5881]
[1735679424492,10.26013753,193.57,193.46,10.26013753]
[1735679424691,2.588,193.54,193.5,2.5884]
[1735679424985,10.26013753,193.54,193.43,10.26013753]
[1735679425190,2.5886,193.5,193.46,2.5889]
[1735679425782,2.5886,193.5,193.47,2.5888]
[1735679426094,2.5886,193.49,193.43,13.60013753]
[1735679426290,2.5886,193.49,193.43,3.34]
[1735679427195,2.5886,193.49,193.45,2.589]
[1735679428390,2.5882,193.52,193.49,2.5885]
[1735679428592,3.26,193.54,193.43,10.26013753]
[1735679428785,2.5881,193.53,193.46,2.5889]
[1735679428991,2.5881,193.53,193.43,10.26013753]
[1735679429192,3.26,193.54,193.43,10.26013753]
[1735679429592,13.52013753,193.54,193.43,10.26013753]
[1735679429989,13.52013753,193.54,193.29,28.52470533]
[1735679430191,10.26013753,193.44,193.3,3.26]
[1735679430395,13.52013753,193.44,193.31,10.26013753]
[1735679430597,2.5899,193.4,193.31,10.26013753]
[1735679430892,10.26013753,193.41,193.29,42.04484286]
[1735679431298,10.26013753,193.41,193.29,13.52013753]
[1735679431299,2.5898,193.4,193.29,13.52013753]
[1735679431998,2.59,193.39,193.34,2.5905]
[1735679432189,3.26,193.39,193.29,10.26013753]
[1735679432395,3.26,193.39,193.27,6.83476288]
[1735679432593,10.26013753,193.38,193.27,6.83476288]
[1735679433100,2.5902,193.37,193.31,2.591]
[1735679433398,2.5902,193.37,193.27,6.83476288]
[1735679433595,10.26013753,193.38,193.27,6.83476288]
[1735679433802,3.26,193.39,193.29,10.26013753]
[1735679434004,3.26,193.39,193.34,2.5905]
[1735679434191,3.26,193.39,193.29,10.26013753]
[1735679434793,3.26,193.39,193.35,2.5904]
[1735679435402,5.8499,193.39,193.34,2.5906]
[1735679435599,10.26013753,193.35,193.17,7.7786]
[1735679435800,10.26013753,193.33,193.19,10.26013753]
[1735679436299,2.591,193.31,193.19,10.26013753]
[1735679436500,2.591,193.31,193.22,10.26013753]
[1735679436701,3.52,193.32,193.27,2.5914]
[1735679436899,3.52,193.32,193.22,10.26013753]
[1735679437101,3.0244,193.34,193.22,10.26013753]
[1735679437304,3.52,193.33,193.22,10.26013753]
[1735679439502,10.26013753,193.36,193.22,10.26013753]
[1735679439704,10.26013753,193.36,193.25,10.26013753]
[1735679439899,10.26013753,193.36,193.26,8.0007]
[1735679441704,12.85013753,193.39,193.26,8.0007]
[1735679441908,10.26013753,193.39,193.28,10.26013753]
[1735679442806,10.26013753,193.39,193.34,2.5905]
[1735679443600,12.85013753,193.39,193.34,2.5905]
[1735679443800,1.5363,193.48,193.31,3.52]
[1735679444001,2.5896,193.42,193.36,2.5902]
[1735679444300,10.26013753,193.43,193.31,3.52]
[1735679444495,10.26013753,193.43,193.36,2.5902]
[1735679444704,2.5897,193.41,193.36,2.5902]
[1735679447513,2.5897,193.41,193.37,2.5901]
[1735679447709,2.5895,193.42,193.31,3.52]
[1735679448210,2.5895,193.42,193.37,2.5901]
[1735679449209,10.26013753,193.43,193.37,2.5901]
[1735679449514,2.5897,193.41,193.37,2.5901]
[1735679451013,2.5901,193.38,193.34,2.5906]
[1735679452516,10.26013753,193.4,193.29,3.52]
[1735679452713,2.5904,193.36,193.29,3.52]
[1735679455207,2.5904,193.36,193.33,2.5907]
[1735679455407,12.85033753,193.37,193.33,2.5907]
[1735679455713,10.26013753,193.4,193.34,2.5906]
[1735679456416,3.52,193.42,193.29,3.52]
[1735679456616,10.26013753,193.43,193.29,3.52]
[1735679456814,2.5897,193.42,193.31,10.26013753]
[1735679457713,10.26013753,193.41,193.3,3.52]
[1735679458212,2.5895,193.42,193.34,2.5905]
[1735679458409,2.5895,193.42,193.31,10.26013753]
[1735679458808,10.26013753,193.44,193.31,10.26013753]
[1735679459007,2.5898,193.4,193.36,2.5903]
[1735679459711,2.5899,193.39,193.3,3.52]
[1735679460315,2.5901,193.38,193.3,3.52]
[1735679460516,10.26013753,193.41,193.29,3.52]
[1735679460819,10.26013753,193.38,193.28,3.52]
[1735679461016,2.5906,193.35,193.31,2.591]
[1735679462321,2.5904,193.36,193.32,2.5908]
[1735679462514,1.477,193.4,193.28,13.78013753]
[1735679462817,13.78013753,193.41,193.28,13.78013753]
[1735679463015,10.26013753,193.41,193.28,13.78013753]
[1735679463315,10.26013753,193.41,193.29,3.52]
[1735679463517,2.59,193.39,193.29,3.52]
[1735679464108,2.59,193.39,193.35,2.5904]
[1735679465322,2.59,193.39,193.29,3.52]
[1735679465323,10.26013753,193.41,193.29,3.52]
[1735679466120,10.26013753,193.38,193.26,33.00540533]
[1735679466315,10.26013753,193.38,193.27,3.4]
[1735679466526,2.5908,193.33,193.26,36.40540533]
[1735679467016,2.5908,193.33,193.26,7.8807]
[1735679467918,2.5908,193.33,193.29,2.5912]
[1735679469421,2.5905,193.35,193.27,3.4]
[1735679470423,10.26013753,193.38,193.28,2.5914]
[1735679470624,14.75663753,193.38,193.28,2.5914]
[1735679470823,14.75663753,193.38,193.27,3.4]
[1735679471125,2.5907,193.34,193.29,2.5912]
[1735679473822,14.75663753,193.38,193.27,3.4]
[1735679474023,14.75663753,193.38,193.31,2.5909]
[1735679474024,2.5905,193.35,193.31,2.5909]
[1735679474822,2.5906,193.34,193.3,2.5911]
[1735679477324,2.5903,193.36,193.32,2.5908]
[1735679478019,3.4,193.43,193.29,10.26013753]
[1735679478216,11.04964647,193.42,193.29,10.26013753]
[1735679478527,2.5899,193.39,193.36,2.5903]
[1735679478728,19.64970184,193.42,193.33,3.4]
[1735679478929,10.26013753,193.42,193.33,3.4]
[1735679479629,2.5898,193.41,193.33,3.4]
[1735679480019,10.26013753,193.42,193.33,3.4]
[1735679480020,2.5898,193.4,193.36,2.5902]
[1735679481525,19.65494627,193.43,193.33,3.4]
[1735679481720,10.26013753,193.43,193.33,3.4]
[1735679482323,2.5898,193.4,193.36,2.5902]
[1735679483131,2.5898,193.4,193.37,2.5902]
[1735679483435,2.5898,193.4,193.33,3.4]
[1735679483620,10.26013753,193.4,193.27,7.15626056]
[1735679484230,10.26013753,193.4,193.33,2.5907]
[1735679485029,2.5902,193.37,193.33,2.5907]
[1735679485237,2.5902,193.37,193.34,2.5906]
[1735679487035,2.5902,193.37,193.3,3.4]
[1735679487237,2.5903,193.36,193.33,2.5907]
[1735679488030,10.26013753,193.4,193.3,3.4]
[1735679488232,9.18016587,193.37,193.34,2.5906]
[1735679488636,2.5902,193.37,193.34,2.5906]
[1735679488842,6.58996587,193.36,193.34,2.5906]
[1735679490539,2.5902,193.37,193.34,2.5906]
[1735679490735,6.58996587,193.36,193.34,2.5906]
[1735679494030,6.58996587,193.36,193.26,4.4807]
[1735679494235,6.58996587,193.32,193.26,2.9875]
[1735679494436,6.58996587,193.32,193.25,6.58996587]
[1735679494832,2.5911,193.31,193.28,2.5914]
[1735679495638,6.58996587,193.32,193.25,6.58996587]
[1735679496441,2.5913,193.29,193.26,2.5916]
[1735679497638,2.5911,193.31,193.27,2.5915]
[1735679498740,2.5913,193.3,193.26,2.5916]
[1735679500742,6.58996587,193.32,193.26,2.5916]
[1735679501045,2.5913,193.29,193.26,2.5916]
[1735679502539,2.5913,193.29,193.25,2.5918]
[1735679505438,2.591,193.31,193.27,2.5915]
[1735679505739,5.1788,193.44,193.28,6.58996587]
[1735679505740,6.58996587,193.35,193.28,6.58996587]
[1735679506141,9.18046587,193.35,193.31,2.5909]
[1735679506345,6.58996587,193.35,193.31,2.5909]
[1735679507342,6.58996587,193.35,193.3,2.5911]
[1735679508439,2.5907,193.33,193.3,2.5911]
[1735679509041,2.591,193.31,193.27,2.5914]
[1735679509639,2.591,193.31,193.26,9.90996587]
[1735679509843,2.591,193.31,193.28,2.5914]
[1735679510641,2.5909,193.32,193.28,2.5914]
[1735679511746,2.591,193.31,193.28,2.5914]
[1735679512043,6.58996587,193.31,193.26,2.5915]
[1735679513550,2.5912,193.3,193.26,2.5915]
[1735679515446,6.58996587,193.29,193.23,1.83249095]
[1735679515650,2.5916,193.27,193.23,4.42449095]
[1735679515853,2.5916,193.27,193.23,1.83249095]
[1735679516249,6.58996587,193.29,193.23,1.83249095]
[1735679516451,6.58996587,193.29,193.24,6.58996587]
[1735679516747,6.58996587,193.31,193.24,6.58996587]
[1735679517347,2.5911,193.3,193.26,2.5917]
[1735679518449,2.5911,193.3,193.24,6.58996587]
[1735679518748,6.58996587,193.31,193.26,6.58996587]
[1735679518948,2.5909,193.32,193.26,6.58996587]
[1735679519144,6.58996587,193.33,193.29,2.5911]
[1735679519653,6.58996587,193.33,193.28,9.18136587]
[1735679519654,9.18076587,193.33,193.28,9.18136587]
[1735679520154,2.591,193.32,193.27,2.5915]
[1735679520950,2.5911,193.31,193.27,2.5915]
[1735679521153,6.58996587,193.33,193.26,9.18156587]
[1735679521451,2.5913,193.29,193.24,14.47516587]
[1735679522058,2.5913,193.29,193.25,2.5918]
[1735679522857,6.58996587,193.31,193.24,17.06706587]
[1735679523354,2.5914,193.29,193.24,17.06706587]
[1735679523657,2.5914,193.29,193.24,13.74706587]
[1735679524154,6.58996587,193.33,193.26,6.58996587]
[1735679524551,6.58996587,193.31,193.24,11.15516587]
[1735679525454,6.58996587,193.31,193.24,9.66266587]
[1735679525658,6.58996587,193.31,193.24,6.58996587]
[1735679525852,2.5916,193.27,193.23,4.42459095]
[1735679526756,2.5917,193.26,193.23,4.42459095]
[1735679529767,6.58996587,193.29,193.23,4.42459095]
[1735679530068,2.5915,193.28,193.23,4.42459095]
[1735679530865,2.5915,193.28,193.24,2.5919]
[1735679531558,3.8885831,193.34,193.24,6.58996587]
[1735679531559,6.58996587,193.31,193.24,6.58996587]
[1735679532763,2.5914,193.28,193.25,2.5918]
[1735679533067,6.58996587,193.29,193.23,1.83249095]
[1735679533568,6.58996587,193.29,193.23,4.42449095]
[1735679533972,6.58996587,193.27,193.23,4.42449095]
[1735679534263,6.58996587,193.25,193.19,9.54996587]
[1735679534464,2.5921,193.23,193.19,8.08456587]
[1735679534664,2.5921,193.23,193.19,9.18246587]
[1735679535264,2.5921,193.23,193.19,6.58996587]
[1735679535462,2.5921,193.23,193.2,2.5924]
[1735679535667,6.58996587,193.25,193.2,2.5924]
[1735679535668,2.592,193.24,193.2,2.5924]
[1735679536969,6.58996587,193.25,193.19,6.58996587]
[1735679537168,6.58996587,193.27,193.21,6.58996587]
[1735679537565,6.58996587,193.28,193.21,6.58996587]
[1735679538166,6.58996587,193.26,193.21,2.5923]
[1735679539571,2.5919,193.25,193.21,2.5923]
[1735679539973,9.18166587,193.26,193.22,2.5922]
[1735679540475,2.5918,193.26,193.22,2.5922]
[1735679540674,6.58996587,193.27,193.21,2.5923]
[1735679541267,6.58996587,193.27,193.22,2.5922]
[1735679541972,2.5917,193.26,193.22,2.5922]
[1735679546672,3.8885831,193.29,193.2,6.58996587]
[1735679546868,6.58996587,193.28,193.24,2.5918]
[1735679547178,2.5914,193.29,193.22,6.58996587]
[1735679547378,6.58996587,193.3,193.22,6.58996587]
[1735679547975,2.5913,193.29,193.25,2.5917]
[1735679548370,2.5913,193.29,193.22,6.58996587]
[1735679548979,2.5913,193.29,193.26,2.5916]
[1735679550080,9.18126587,193.29,193.26,2.5916]
[1735679551777,6.58996587,193.27,193.2,6.58996587]
[1735679552083,6.58996587,193.29,193.22,6.58996587]
[1735679552782,2.5915,193.28,193.25,2.5918]
[1735679554984,3.88930966,193.31,193.22,6.58996587]
[1735679555184,6.58996587,193.31,193.22,6.58996587]
[1735679556185,2.5913,193.29,193.27,2.5915]
[1735679557386,2.5913,193.29,193.26,2.5916]
[1735679557583,2.5913,193.29,193.22,6.58996587]
[1735679557995,2.5913,193.29,193.26,2.5916]
[1735679558190,6.58996587,193.31,193.24,6.58996587]
[1735679558593,6.58996587,193.31,193.26,2.5917]
[1735679558788,9.18106587,193.31,193.24,6.58996587]
[1735679559088,6.58996587,193.31,193.27,2.5914]
[1735679560393,2.5911,193.3,193.27,2.5914]
[1735679560594,2.5911,193.3,193.27,2.5915]
[1735679564496,2.5911,193.3,193.28,2.5914]
[1735679565297,2.5911,193.3,193.27,2.5915]
[1735679572995,2.5913,193.29,193.27,2.5915]
[1735679573599,2.5913,193.29,193.24,6.58996587]
[1735679573803,2.5913,193.29,193.26,2.5916]
[1735679574303,6.58996587,193.31,193.24,6.58996587]
[1735679574901,2.5911,193.3,193.26,2.5917]
[1735679575201,2.5911,193.3,193.24,6.58996587]
[1735679576406,2.5911,193.3,193.27,2.5915]
[1735679578302,2.5911,193.3,193.24,6.58996587]
[1735679578504,2.5911,193.3,193.28,2.5914]
[1735679579610,2.5911,193.3,193.27,2.5915]
[1735679581098,6.58996587,193.31,193.27,2.5915]
[1735679581306,6.58996587,193.29,193.25,2.5917]
[1735679581901,2.5919,193.25,193.23,3.0211]
[1735679582210,6.58996587,193.29,193.18,46.83181336]
[1735679582211,6.58996587,193.29,193.2,6.58996587]
[1735679582905,2.5919,193.25,193.21,2.5922]
[1735679583817,9.74996587,193.29,193.22,6.58996587]
[1735679584011,2.5915,193.27,193.24,2.5919]
[1735679584508,2.5914,193.28,193.25,2.5918]
[1735679585914,2.5914,193.28,193.24,2.5919]
[1735679587208,2.5914,193.28,193.25,2.5918]
[1735679587712,3.88941425,193.3,193.24,6.58996587]
[1735679587914,6.58996587,193.31,193.26,2.5917]
[1735679588512,2.5912,193.3,193.26,2.5917]
[1735679589517,10.47938012,193.31,193.26,2.5917]
[1735679589719,2.5913,193.29,193.26,2.5917]
[1735679590115,6.58996587,193.31,193.24,6.58996587]
[1735679590315,2.5912,193.3,193.27,2.5915]
[1735679592922,6.48061425,193.3,193.27,2.5915]
[1735679593521,2.5912,193.3,193.27,2.5915]
[1735679594315,6.48041425,193.31,193.28,2.5913]
[1735679594625,2.591,193.31,193.26,6.58996587]
[1735679595016,2.591,193.31,193.28,2.5913]
[1735679595819,2.5911,193.3,193.28,2.5913]
[1735679596427,2.5913,193.29,193.24,6.58996587]
[1735679596927,2.5913,193.29,193.27,2.5915]
[1735679597717,2.5914,193.28,193.26,2.5916]
[1735679598722,2.5914,193.28,193.25,2.5917]
[1735679599931,10.47938012,193.3,193.24,6.58996587]
[1735679600229,2.5913,193.29,193.26,2.5916]
[1735679606038,19.89119944,193.32,193.27,2.5915]
[1735679606241,19.89119944,193.32,193.24,6.58996587]
[1735679606432,16.00178519,193.32,193.24,6.58996587]
[1735679606628,2.5911,193.31,193.27,2.5914]
[1735679607136,2.5911,193.3,193.27,2.5914]
[1735679607634,3.888836,193.33,193.29,2.5913]
[1735679607839,19.89062119,193.34,193.27,6.58996587]
[1735679608138,10.47880187,193.34,193.27,9.68996587]
[1735679608439,9.18066587,193.34,193.3,2.5911]
[1735679609236,2.5907,193.33,193.3,2.5911]
[1735679609640,6.58996587,193.34,193.27,3.1]
[1735679609841,2.5911,193.31,193.27,5.6915]
[1735679610341,2.5912,193.3,193.27,5.6915]
[1735679610842,6.58996587,193.34,193.27,3.1]
[1735679611043,2.5909,193.32,193.29,2.5913]
[1735679611838,6.58996587,193.34,193.27,3.1]
[1735679612043,2.5908,193.33,193.29,2.5912]
[1735679612238,6.58996587,193.34,193.29,2.5912]
[1735679612440,6.58996587,193.34,193.27,5.6915]
[1735679612640,6.58996587,193.34,193.27,3.1]
[1735679613241,2.5908,193.33,193.29,2.5913]
[1735679613439,3.888836,193.35,193.27,3.1]
[1735679613639,3.1,193.38,193.27,3.1]
[1735679613849,6.58996587,193.34,193.27,3.1]
[1735679614434,6.58996587,193.3,193.23,3.1372]
[1735679614637,2.592,193.26,193.22,2.5924]
[1735679614843,6.58996587,193.28,193.22,2.5924]
[1735679615145,2.592,193.26,193.22,2.5924]
[1735679615641,6.58996587,193.28,193.22,2.5924]
[1735679615843,2.592,193.26,193.23,2.5923]
[1735679616043,6.58996587,193.28,193.23,2.5923]
[1735679617047,6.58996587,193.26,193.2,3.08]
[1735679618447,6.58996587,193.26,193.22,2.5924]
[1735679618448,9.18196587,193.26,193.22,2.5924]
[1735679618844,6.58996587,193.26,193.19,6.58996587]
[1735679619545,2.5918,193.27,193.23,2.5922]
[1735679619746,6.58996587,193.28,193.21,6.58996587]
[1735679620743,9.18176587,193.28,193.23,2.5923]
[1735679621346,6.58996587,193.28,193.21,6.58996587]
[1735679621849,6.58996587,193.28,193.24,2.5921]
[1735679623848,9.18166587,193.28,193.24,2.5921]
[1735679627656,6.58996587,193.28,193.21,2.5926]
[1735679629055,2.5921,193.25,193.21,2.5926]
[1735679629358,6.58996587,193.28,193.19,6.58996587]
[1735679629557,2.592,193.26,193.22,2.5924]
[1735679632157,2.5921,193.25,193.22,2.5924]
[1735679632354,6.58996587,193.26,193.19,2.5928]
[1735679632553,6.58996587,193.26,193.18,6.58996587]
[1735679632759,2.5924,193.23,193.18,6.58996587]
[1735679633056,6.58996587,193.26,193.18,6.58996587]
[1735679633256,2.5922,193.24,193.21,2.5926]
[1735679633557,6.58996587,193.26,193.18,6.58996587]
[1735679634250,2.5922,193.25,193.18,6.58996587]
[1735679634754,2.5922,193.25,193.21,2.5925]
[1735679635757,2.5922,193.25,193.18,6.58996587]
[1735679635958,2.5922,193.25,193.22,2.5924]
[1735679638364,6.58996587,193.26,193.2,6.58996587]
[1735679638551,2.5922,193.24,193.21,2.5926]
[1735679639160,2.5922,193.24,193.22,2.5925]
[1735679639563,2.5922,193.24,193.17,4.80698791]
[1735679639756,2.5922,193.25,193.2,2.5926]
[1735679639961,2.5922,193.25,193.19,6.58996587]
[1735679640462,2.5922,193.25,193.21,2.5925]
[1735679640754,2.5922,193.24,193.21,2.5925]
[1735679642962,2.5923,193.23,193.2,2.5927]
[1735679643963,6.58996587,193.26,193.17,1.72698791]
[1735679644165,2.5925,193.22,193.19,2.5928]
[1735679644363,6.58996587,193.26,193.18,6.58996587]
[1735679645055,2.5922,193.24,193.2,2.5926]
[1735679645260,6.58996587,193.24,193.2,2.5926]
[1735679646263,6.58996587,193.24,193.17,8.31695378]
[1735679646463,2.5924,193.23,193.19,2.5928]
[1735679646760,2.5924,193.23,193.19,6.58996587]
[1735679647972,2.5922,193.25,193.19,6.58996587]
[1735679648157,6.58996587,193.26,193.19,6.58996587]
[1735679648465,2.5923,193.24,193.2,2.5927]
[1735679651066,2.5924,193.23,193.2,2.5927]
[1735679651463,6.58996587,193.26,193.19,2.5928]
[1735679652260,2.5924,193.23,193.19,2.5928]
[1735679660678,6.58996587,193.26,193.19,6.58996587]
[1735679660679,2.5921,193.25,193.19,6.58996587]
[1735679661071,6.480936,193.25,193.19,6.58996587]
[1735679661273,6.480936,193.25,193.21,2.5925]
[1735679661671,2.5921,193.25,193.21,2.5925]
[1735679662076,6.480936,193.25,193.21,2.5925]
[1735679662879,2.5921,193.25,193.21,2.5925]
[1735679663082,2.5921,193.25,193.22,2.5924]
[1735679663380,2.5918,193.27,193.21,6.58996587]
[1735679663877,2.5918,193.27,193.24,2.5922]
[1735679665080,10.47996311,193.28,193.23,2.5923]
[1735679665279,2.5919,193.26,193.23,2.5923]
[1735679670386,2.5922,193.24,193.21,12.26246587]
[1735679673682,2.5922,193.24,193.21,9.18246587]
[1735679677086,2.592,193.26,193.22,2.5924]
[1735679678588,2.592,193.26,193.23,2.5923]
[1735679680286,2.5918,193.27,193.23,2.5923]
[1735679681793,3.88999724,193.29,193.26,2.5919]
[1735679681990,2.5914,193.3,193.25,9.66996587]
[1735679683491,2.5914,193.3,193.27,2.5918]
[1735679684694,2.5913,193.31,193.27,2.5918]
[1735679687707,2.5914,193.3,193.27,2.5918]
[1735679688005,6.58996587,193.32,193.27,2.5918]
[1735679688198,2.5913,193.31,193.27,2.5918]
[1735679691096,9.37984662,193.35,193.29,6.58996587]
[1735679691297,9.37984662,193.35,193.32,6.58996587]
[1735679691497,6.47846175,193.38,193.33,3.08]
[1735679691699,2.5904,193.38,193.33,3.08]
[1735679691895,2.5904,193.38,193.34,2.5907]
[1735679694406,2.5904,193.38,193.33,3.08]
[1735679694407,6.58996587,193.41,193.33,3.08]
[1735679695001,6.58996587,193.41,193.34,6.58996587]
[1735679695202,2.5901,193.4,193.36,2.5905]
[1735679699612,2.5902,193.39,193.36,2.5905]
[1735679699808,6.58996587,193.41,193.34,6.58996587]
[1735679700110,6.58996587,193.41,193.37,2.5904]
[1735679700310,4.5559,193.43,193.38,3.08]
[1735679700514,6.58996587,193.44,193.39,2.5901]
[1735679700716,2.5899,193.42,193.38,3.08]
[1735679701009,6.58996587,193.42,193.36,3.08]
[1735679701409,2.5901,193.4,193.36,3.08]
[1735679702009,2.5901,193.4,193.36,5.6706]
[1735679702207,2.5901,193.4,193.36,3.08]
[1735679702602,6.58996587,193.42,193.38,2.5903]
[1735679703213,9.17986587,193.42,193.38,2.5903]
[1735679703407,6.58996587,193.42,193.37,2.5904]
[1735679703710,6.58996587,193.38,193.31,3.06]
[1735679703905,6.58996587,193.36,193.31,3.06]
[1735679704308,2.591,193.33,193.31,3.06]
[1735679704911,6.58996587,193.34,193.24,1.5599]
[1735679705111,6.58996587,193.34,193.27,2.5918]
[1735679705112,2.5913,193.31,193.27,2.5918]
[1735679705412,3.06,193.39,193.25,3.06]
[1735679705413,6.58996587,193.36,193.28,6.58996587]
[1735679705612,6.58996587,193.34,193.25,3.06]
[1735679705813,6.58996587,193.34,193.26,6.58996587]
[1735679706514,2.5913,193.31,193.26,9.18176587]
[1735679706713,6.58996587,193.32,193.23,1.5973]
[1735679706910,6.58996587,193.32,193.25,6.58996587]
[1735679707308,6.58996587,193.32,193.23,1.5973]
[1735679707512,6.58996587,193.32,193.26,6.58996587]
[1735679708419,2.5915,193.29,193.26,6.58996587]
[1735679708616,2.5915,193.29,193.24,9.64996587]
[1735679708917,2.5915,193.29,193.24,12.24206587]
[1735679709317,2.5915,193.29,193.24,9.18206587]
[1735679709517,2.5915,193.29,193.25,5.652]
[1735679710418,2.5914,193.3,193.26,2.5919]
[1735679716023,2.5913,193.31,193.27,2.5918]
[1735679719620,6.58996587,193.3,193.17,1.5162]
[1735679719820,2.5918,193.28,193.24,2.5922]
[1735679721228,2.5919,193.27,193.23,2.5923]
[1735679722430,2.5919,193.27,193.24,2.5922]
[1735679725335,2.592,193.26,193.22,9.18236587]
[1735679725635,2.592,193.26,193.22,2.5924]
[1735679726331,6.58996587,193.27,193.21,1.65786184]
[1735679727131,2.5923,193.24,193.21,4.25046184]
[1735679727534,6.58996587,193.27,193.21,1.65786184]
[1735679728938,2.5923,193.24,193.21,4.25046184]
[1735679730232,6.58996587,193.27,193.21,1.65786184]
[1735679730434,6.58996587,193.23,193.07,7.15626056]
[1735679730740,6.58996587,193.21,193.13,6.58996587]
[1735679730933,2.5929,193.19,193.15,2.5933]
[1735679731841,2.5929,193.19,193.15,9.18326587]
[1735679733849,2.5929,193.19,193.15,2.5933]
[1735679734042,2.5929,193.19,193.15,9.18326587]
[1735679734337,6.58996587,193.17,193.01,28.52470533]